Cogmind - Beta 13 @@@ ROGUE MODE // 2024.06.03 @ 00:29:05 Player: Beepinex Result: Destroyed by D-53 Grenadier with Mini Grenade Launcher Performance ------------- Evolutions (0) 0 Regions Visited (2) 400 Robots Destroyed (26) 130 Value Destroyed (576) 576 Prototype IDs (2) 40 Alien Tech Used (0) 0 Bonus (0) 0 TOTAL SCORE: 1146 Bonus ------- None Cogmind --------- Core Integrity 0/250 Matter 262/300 Energy 74/100 System Corruption 1% Temperature Cool (20) Movement Rolling (115) Ox1 Location -10/Mines Parts ------- > --- POWER (1) -------- (None) > --- PROPULSION (2) --- Light Treads Compact Wheel > --- UTILITY (2) ------ Medium Storage Unit Seismic Detector > --- WEAPON (2) ------- Beam Cannon Rocket Launcher > --- INVENTORY (10) --- Light Treads Compact Wheel Improved Heat Sink Large Matter Pod (150) Light Armor Plating Light Assault Rifle Light Cannon Grenade Launcher Datajack Peak State ------------ > --- POWER ------------ Light Nuclear Core > --- PROPULSION ------- Light Treads Compact Wheel > --- UTILITY ---------- Medium Storage Unit Seismic Detector > --- WEAPON ----------- Light Assault Rifle Rocket Launcher > --- INVENTORY -------- Light Treads Compact Wheel Improved Heat Sink Large Matter Pod Light Armor Plating Beam Cannon Light Cannon Grenade Launcher Datajack [Rating: 11] Favorites ----------- Power Light Nuclear Core Engine Ion Engine Power Core Light Nuclear Core Propulsion Light Treads Treads Light Treads Wheel Compact Wheel Utility Seismic Detector Device Seismic Detector Storage Medium Storage Unit Weapon Light Assault Rifle Energy Gun EM Pulse Gun Energy Cannon Beam Cannon Ballistic Gun Light Assault Rifle Launcher Grenade Launcher Build | -11 -10 -10 ------- Run | Yrd Mat Min Slots Evolved . | . . . Power . | . . . Propulsion . | . . . Utility . | . . . Weapon . | . . . Parts Attached 23 | 7 11 5 Power 3 | 1 2 . Engine 1 | 1 . . Core 2 | . 2 . Reactor . | . . . Propulsion 6 | 2 4 . Treads 3 | 1 2 . Leg . | . . . Wheel 3 | 1 2 . Hover . | . . . Flight . | . . . Utility 3 | 2 1 . Device 1 | 1 . . Storage 2 | 1 1 . Processor . | . . . Hackware . | . . . Protection . | . . . Artifact . | . . . Weapon 11 | 2 4 5 Energy Gun 5 | 1 3 1 Energy Cannon 1 | . . 1 Ballistic Gun 2 | 1 1 . Ballistic Cannon . | . . . Launcher 3 | . . 3 Special Weapon . | . . . Impact Weapon . | . . . Slashing Weapon . | . . . Piercing Weapon . | . . . Special Melee Weapon . | . . . Unidentified Prototypes . | . . . Parts Lost 5 | . 3 2 Power 1 | . . 1 Propulsion 2 | . 2 . Utility . | . . . Weapon 2 | . 1 1 Highest Loss Streak 2 | . 1 2 To Critical Strikes . | . . . Average Slot Usage (%) 98 | . 98 99 Engine 2 | . 3 . Core 10 | . 9 13 Treads 14 | . 14 14 Wheel 13 | . 13 14 Device 14 | . 14 14 Storage 14 | . 14 14 Energy Gun 13 | . 14 13 Ballistic Gun 13 | . 13 14 Naked Turns . | . . . Heaviest Build 19 | 14 19 19 Greatest Support 20 | 16 20 16 Greatest Overweight (x) 1 | . 1 1 Average Overweight (x) . | . . 1 Largest Inventory Capacity 10 | 8 10 10 Average Capacity 9 | 7 9 10 Most Carried 10 | 5 9 10 Average Carried 6 | 2 6 8 Final Capacity 10 | 8 10 10 Final Carried 9 | 4 8 9 Class Distribution -------------------- 68% | Scavenger-Mutant 31% | Mutant Dominant Class ---------------- Scavenger-Mutant | -10/Materials Scavenger-Mutant | -10/Mines Resources | -11 -10 -10 ----------- Run | Yrd Mat Min Matter Collected 642 | 281 329 32 Remotely . | . . . Salvage Created 982 | 105 855 22 Parts 63 | 9 49 5 Haulers Intercepted 2 | . 2 . Recyclers Shooed 2 | 1 1 . Parts Field Recycled . | . . . Retrieved Matter . | . . . Parts Self-Destructed . | . . . Prevented . | . . . Kills | -11 -10 -10 ------- Run | Yrd Mat Min Combat Hostiles Destroyed 15 | . 12 3 Guns 12 | . 12 . AOE 3 | . . 3 Classes Destroyed 8 | 2 5 1 Builder 1 | . 1 . Tunneler 2 | 2 . . Hauler 2 | . 2 . Recycler 2 | 1 1 . Operator 1 | . 1 . Watcher 3 | . 3 . Swarmer 3 | . . 3 Grunt 12 | . 12 . Best Kill Streak 4 | 3 4 3 Combat Bots Only 3 | . 2 3 Max Kills in Single Turn 3 | 1 1 3 Gunslinging . | . . . Exploded 3 | . . 3 Melee . | . . . Uniques/NPCs Destroyed . | . . . Combat | -11 -10 -10 -------- Run | Yrd Mat Min Hostile Shots Fired 68 | . 54 14 Missed 15 | . 14 1 Damage Taken 1036 | . 610 426 Core 274 | . 75 199 Absorbed by Shields . | . . . Regen/Repaired (Parts) 117 | . 117 . Core Remaining (%) 100 | 100 . . Volleys Fired 88 | 11 72 5 Largest 2 | 2 2 2 Hottest 80 | 70 70 80 Shots Fired 171 | 22 141 8 Gun 167 | 22 141 4 Cannon 2 | . . 2 Launcher 2 | . . 2 Special . | . . . Kinetic 86 | 11 72 3 Thermal 35 | 11 22 2 Explosive 2 | . . 2 Electromagnetic 48 | . 47 1 Robot Hit Streak 14 | 9 14 3 Robot Miss Streak 4 | 2 4 4 Penetration Max . | . . . Secondary Targets 1 | . 1 . Max Gunslinging Chain 1 | . 1 . Shots Hit Robots 117 | 16 98 3 Core Hits 50 | 3 43 4 Critical Kills . | . . . Critical Parts Destroyed . | . . . Critical Strikes 2 | 1 1 . Burn 2 | 1 1 . Melee Attacks . | . . . Impact . | . . . Slashing . | . . . Piercing . | . . . Sneak Attacks . | . . . Combat Hostiles . | . . . Follow-up Attacks . | . . . Damage Inflicted 1481 | 169 1127 185 Guns 1250 | 169 1063 18 Cannons 17 | . . 17 Explosions 207 | . 64 143 Melee . | . . . Ramming 7 | . . 7 Kinetic 470 | 45 407 18 Thermal 372 | 124 231 17 Explosive 143 | . . 143 Electromagnetic 489 | . 489 . Impact . | . . . Slashing . | . . . Piercing . | . . . Highest Corruption 1 | . 1 1 Average Corruption 1 | . 1 1 Corruption Purged . | . . . Corruption Blocked . | . . . Effects 9 | . 3 6 Message Errors 4 | . . 4 Matter Fused 2 | . 1 1 Data Loss (minor) 2 | . 1 1 Alerts 1 | . 1 . Overload Shots . | . . . Overflow Damage 3 | . 3 . Projectiles . | . . . Explosions 3 | . 3 . Melee . | . . . Knockbacks . | . . . Impact . | . . . Kinetic . | . . . Secondary . | . . . Self-Inflicted Damage 39 | . 29 10 Shots 2 | . 1 1 Rammed 1 | . . 1 Targets Rammed 1 | . . 1 Kicked . | . . . Crushed . | . . . Highest Temperature 189 | 130 189 70 Average Temperature 43 | 60 41 31 Received Heat Transfer 279 | . 279 . Siege Activations . | . . . Robots Corrupted . | . . . Combat Hostiles . | . . . Parts Fried 1 | . 1 . Impact Corruptions . | . . . Robots Melted 1 | 1 . . Combat Hostiles . | . . . Parts Melted 3 | 2 1 . Heat Transferred 1113 | 444 632 37 Parts Sabotaged . | . . . Parts Stolen . | . . . Parts Stripped . | . . . Power Chain Reactions 1 | . 1 . Alert | -11 -10 -10 ------- Run | Yrd Mat Min Peak Influence 325 | 15 325 139 Initial 40 | . 9 40 Average 124 | 6 144 105 Maximum Alert Level 1 | . 1 . Low Security (%) 88 | 100 83 100 Level 1 11 | . 16 . Level 2 . | . . . Level 3 . | . . . Level 4 . | . . . Level 5 . | . . . High Security . | . . . Max Security . | . . . Squads Dispatched 3 | . 3 . Investigation 2 | . 2 . Extermination . | . . . Reinforcement 1 | . 1 . Assault . | . . . Garrison . | . . . Intercept . | . . . Searches Triggered . | . . . Construction Impeded . | . . . Haulers Reinforced . | . . . Active Scanning Responses . | . . . Cargo Convoy Interrupts . | . . . Stealth | -11 -10 -10 --------- Run | Yrd Mat Min Distress Signals 2 | . 2 . Communications Jammed . | . . . Distress Signals . | . . . Times Spotted 27 | . 22 5 Peak Tracking Total 3 | . 3 3 Tactical Retreats 1 | . 1 . Traps | -11 -10 -10 ------- Run | Yrd Mat Min Traps Triggered 4 | . 4 . Indirectly . | . . . Trap Hack Attempts . | . . . Triggered . | . . . Disarmed . | . . . Reprogrammed . | . . . Reused . | . . . Traps Extracted . | . . . Installed . | . . . Triggered . | . . . Machines | -11 -10 -10 ---------- Run | Yrd Mat Min Machines Disabled . | . . . Max in Single Turn . | . . . Machines Repaired . | . . . Machines Dismantled . | . . . Machines Sabotaged . | . . . Overloaded Fab Kills . | . . . Hacking | -11 -10 -10 --------- Run | Yrd Mat Min Machines Accessed 6 | . 5 1 Terminals 4 | . 3 1 Fabricators . | . . . Repair Stations 1 | . 1 . Recycling Units 1 | . 1 . Scanalyzers . | . . . Garrison Access . | . . . Total Hacks 21 | . 19 2 Successful 15 | . 13 2 Failed 6 | . 6 . Catastrophic 1 | . 1 . Database Lockouts . | . . . Manual 11 | . 9 2 Terminals 10 | . 8 2 Fabricators . | . . . Repair Stations 9 | . 9 . Recycling Units 2 | . 2 . Scanalyzers . | . . . Garrison Access . | . . . Terminal Hacks 1 | . 1 . Prototype ID Bank 1 | . 1 . Fabricator Hacks . | . . . Repair Station Hacks 8 | . 8 . Scan Component 4 | . 4 . Repair 4 | . 4 . Recycling Unit Hacks . | . . . Scanalyzer . | . . . Garrison Access Hacks . | . . . Unauthorized Hacks 6 | . 4 2 Terminals 5 | . 3 2 Assimilate 1 | . 1 . Botnet 2 | . 1 1 Operators 2 | . 1 1 Fabricators . | . . . Repair Stations . | . . . Recycling Units 1 | . 1 . Reject 1 | . 1 . Scanalyzers . | . . . Garrison Access . | . . . Data Cores Recovered . | . . . Used . | . . . Hacking Detections 6 | . 5 1 Full Trace Events 1 | . 1 . Feedback Events . | . . . Feedback Blocked . | . . . Robot Schematics Acquired . | . . . Robots Built . | . . . Authchips . | . . . Time . | . . . Total Robot Build Rating . | . . . Part Schematics Acquired . | . . . Parts Built . | . . . Authchips . | . . . Time . | . . . Total Part Build Rating . | . . . Parts Repaired 4 | . 4 . Time 136 | . 136 . Parts Recycled . | . . . Recycled Matter . | . . . Retrieved Matter . | . . . Retrieved Components . | . . . Parts Scanalyzed . | . . . Part Schematics Acquired . | . . . Parts Damaged . | . . . Bothacking | -11 -10 -10 ------------ Run | Yrd Mat Min Used RIF Installer . | . . . Robots Hacked . | . . . Non-combat . | . . . Combat . | . . . Robot Hacks Applied . | . . . Relay Couplers Released . | . . . Fabnet Peak Effective % . | . . . Robots Rewired . | . . . Allies Hacked . | . . . Hacks Repelled . | . . . Allies | -11 -10 -10 -------- Run | Yrd Mat Min Total Allies 2 | . . 2 Largest Group 2 | . . 2 Highest-Rated Group 46 | . . 46 Highest-Rated Ally 31 | . . 31 Total Orders . | . . . Ally Attacks 2 | . . 2 Total Damage 42 | . . 42 Kills . | . . . Allies Corrupted . | . . . Allies Melted . | . . . Intel | -11 -10 -10 ------- Run | Yrd Mat Min Robot Analysis Total . | . . . Derelict Logs Recovered 1 | . . 1 Drone Launches . | . . . Drone Recoveries . | . . . Exploration | -11 -10 -10 ------------- Run | Yrd Mat Min Turns Passed 1450 | 114 1006 330 Spaces Moved 805 | 61 477 267 Core 2 | 2 . . Treads 71 | . 71 . Legs . | . . . Wheels 732 | 59 406 267 Hover . | . . . Flight . | . . . Fastest Speed 50 | 50 100 115 Average Speed 115 | 98 118 115 Slowest Speed 160 | 100 160 115 Overloaded Moves . | . . . Propulsion Burnouts . | . . . Robots Hopped . | . . . Cave-ins Triggered . | . . . Exploration Rate (%) 45 | 4 62 70 Regions Visited 2 Branch Regions 1 Pre-discovered Areas 1 | . . 1 Known Exits Taken . | . . . Unknown Exits Taken 2 | 1 1 . Scrap Searched 2 | . . 2 Spaces Dug . | . . . Terrain Destroyed 20 | . 2 18 Melee . | . . . Projectile . | . . . AOE 20 | . 2 18 Terrain Rammed . | . . . Walls Destroyed . | . . . Machines Disabled . | . . . Actions | -11 -10 -10 --------- Run | Yrd Mat Min Total 1167 | 95 792 280 Wait 210 | 6 204 . Move 803 | 60 476 267 Hop . | . . . Pick Up 33 | 11 20 2 Fast Attach . | . . . Attach 15 | 7 7 1 Detach . | . . . Swap 8 | . 4 4 Drop 9 | . 9 . Fire 88 | 11 72 5 Melee . | . . . Ram 1 | . . 1 Kick . | . . . Crush . | . . . Escape Stasis . | . . . Rewire . | . . . Trap . | . . . Miscellaneous . | . . . Route ------- -11/Scrapyard -10/Materials (discovered 3 exits: [*Mat x2] / *Min) -10/Mines (discovered 2 exits: [*Mat x2]) History --------- Turn | Location | Event 15 | -11/Scrapyard | Discovered new exit (range 15) 115 | -11/Scrapyard | Entered Materials 324 | -10/Materials | Build established: Mutant 524 | -10/Materials | Discovered new exit (range 12) 680 | -10/Materials | Repaired Corrupted Datajack 706 | -10/Materials | Repaired Lgt. Assault Rifle 746 | -10/Materials | Repaired Lgt. Nuclear Core 747 | -10/Materials | Build established: Scavenger-Mutant 828 | -10/Materials | Repaired Corrupted Com. Wheel 938 | -10/Materials | Discovered new exit (range 10) 1003 | -10/Materials | Discovered new exit (range 15) 1121 | -10/Materials | Entered Mines 1282 | -10/Mines | Learned location of Mines (-8) 1307 | -10/Mines | Discovered new exit (range 5) 1392 | -10/Mines | Discovered new exit (range 10) 1393 | -10/Mines | Assembled infested the area 1397 | -10/Mines | Received a Rocket Launcher from a helpful Derelict 1398 | -10/Mines | Assisted by a Guerilla fighting off Assembled 1444 | -10/Mines | Core integrity fell below 50% 1450 | -10/Mines | Core integrity fell below 20% 1451 | -10/Mines | Destroyed by D-53 Grenadier with Mini Grenade Launcher Last Messages --------------- need to get out of here! I've been tracking a group of Assembled to figure out where they're coming from, and they're closing on this area, come on!" 01399_ K-01 Serf collects debris. 01400_ 16-DLX(h) exits level. 01402_ K-01 Serf collects debris. 01413_ System corrupted: Component data lost. 01415_ K-01 Serf collects debris. 01415_ Acquired Rocket Launcher. 01440_ The unstable cave ceiling collapses. 01441_ T-07 Excavator is excavating. 01441_ EM Pulse Gun destroyed. 01441_ T-07 Excavator destroyed. 01442_ The unstable cave ceiling collapses. 01443_ 42-TU4(g) destroyed. 01443_ T-07 Excavator destroyed. 01444_ U-05 Engineer lays Concrete. 01448_ U-05 Engineer builds a Wall. 01449_ Lgt. Nuclear Core destroyed. Map ----- +----------------------------------------------------+ | ?## ##???## ### #?????????? | | ??#####????# ### ##????????? | | ???????????# ### #????????? | | ????????????# ??## #####????? | | ?????????????# #???## ## #????? | | ??????????????# ##???# ## ### #????? | | ???????????????# ##??# ## #?# #????? | | ???????????????## < ##?# #?# #????? | | ????????????????# #?#### #?# #????? | | ????????????????# ##???# #?# #????? | | ????????????????## ##??# [#?# #????? | | ?????????????????## ##?# #?# #????? | | ??????????????????## ### [### #????? | | ???????????????????## ## ## ##???? | | ???????????????????## %# #???? | | ???????????????????##u ## #???? | | ???????????????????# d ## ##???? | | ??????????????????## d ### ##????? | | ??????????????????# % ?#### ##?????? | | ??????????????????# ##??####??????? | | ??????????????????# r ###??????????? | | ?????????????????## ##?????????? | | ?????????????????# # ##????????? | | ??????????????????# #????????? | | ??????????????????# =#????????? | | ????????????????????# @ #????????? | | ???????????????????# #????????? | | ?????????????????# #????????? | | ????????????????# ##????????? | | ?????????????? ## ##?????????? | | ?????????????##### #?#######??????????? | | ?????????????????###???????????????????? | | ???????????????????????????????????????? | | ???????????????????????????????????????? | | | | | | | | | | | | | | | | | | | | | | | | | | | | | | | | | +----------------------------------------------------+ Best States ------------- Heat Dissipation 25 Energy Generation 14 Energy Capacity 250 Matter Stores 300 Matter Capacity 300 Sight Range 16 Terrain Scan Density 10 Evasion (%) 40 Recoil Reduction 1 Item Schematics ----------------- None Robot Schematics ------------------ None Fabricated ------------ Nothing Alien Tech Used ----------------- None Achievements -------------- None Challenges ------------ None Game ------ Seed IonZioniteEngine Manual? 0 Play Time 00:18:18 Cumulative 41.5 hours Start 2024.06.02 @ 23:19:39 End 2024.06.03 @ 00:29:05 Sessions 1 Manual Loads 0 Difficulty Rogue Special Mode None Game No. 75 Rogue 75 Adventurer 0 Explorer 0 Win Type - Total 0 Types 0/0/0/0/0/0/0/0/0 Lore% 17 Gallery% 23 Achievement% 27 Wizard Run 0 Options --------- Layout 1 ASCII 0 Keyboard 0 Movement Numpad Keybinds 0 Fullscreen 2 Font 24/Smallcaps Map View 50x35 Zoom Use 0% Tactical HUD 1 Map Filters NONE Filters NONE Steam 1 RUN: cce53ac1-a25f-4dfe-abed-3280a9a31033